Workbook

Sheet 3(定)
A1: 附件3
A2: 2019年全区政府投资公共租赁住房分配情况表
A3: （截至2019年11月25日）
A5: 序号 | B5: 城市 | C5: 列入国家计划的政府投资公共租赁住房 | I5: 排名
C6: 总套数（套） | D6: 已分配套数（套） | F6: 分配比例 | G6: 第一批盘活套数 | H6: 第二批盘活套数
E7: 其中：1-11月份新增分配套数
A8: 公式栏 | C8: 1 | D8: 2 | E8: 4 | F8: 4=2/1 | G8: 3316 | H8: 1260 | I8: -
A9: 广西总计 | C9: =SUM(C10:C25) -> 392749 | D9: =SUM(D10:D25) -> 371999 | E9: =SUM(E10:E25) -> 15040 | F9: =D9/C9 -> 94.72% | I9: - | J9: 9390 | K9: =E9/J9 -> 160.17%
A10: 1 | B10: 南宁市 | C10: =66894+108 -> 67002 | D10: 64630 | E10: 2628 | F10: =(D10/C10) -> 96.46% | I10: 4 | J10: 1372 | K10: 191.55%
A11: 2 | B11: 柳州市 | C11: =35373-H11 -> 34771 | D11: 33228 | E11: 1626 | F11: 95.56% | H11: 602 | I11: 6 | J11: 1617 | K11: 100.56%
A12: 3 | B12: 桂林市 | C12: =32665-H12 -> 32204 | D12: 30218 | E12: 972 | F12: 93.83% | H12: 461 | I12: 11 | J12: 803 | K12: 121.05%
A13: 4 | B13: 梧州市 | C13: 26122 | D13: 24495 | E13: 456 | F13: 93.77% | G13: 450 | H13: 0 | I13: 12 | J13: 426 | K13: 107.04%
A14: 5 | B14: 北海市 | C14: 16366 | D14: 15887 | E14: 440 | F14: 97.07% | I14: 2 | J14: 134 | K14: 328.36%
A15: 6 | B15: 防城港市 | C15: 7140 | D15: 6720 | E15: 246 | F15: 94.12% | G15: 95 | I15: 9 | J15: 106 | K15: 232.08%
A16: 7 | B16: 钦州市 | C16: 24402 | D16: 22224 | E16: 1740 | F16: 91.07% | I16: 13 | J16: 812 | K16: 214.29%
A17: 8 | B17: 贵港市 | C17: 30168 | D17: 27414 | E17: 2203 | F17: 90.87% | I17: 14 | J17: 353 | K17: 624.08%
A18: 9 | B18: 玉林市 | C18: 15557 | D18: 14939 | E18: 522 | F18: 96.03% | I18: 5 | J18: 245 | K18: 213.06%
A19: 10 | B19: 百色市 | C19: 41669 | D19: 40573 | E19: 723 | F19: 97.37% | G19: 484 | I19: 1 | J19: 0
A20: 11 | B20: 贺州市 | C20: =18868-H20-108 -> 18563 | D20: 17619 | E20: 1287 | F20: 94.91% | G20: 262 | H20: 197 | I20: 8 | J20: 950 | K20: 135.47%
A21: 12 | B21: 河池市 | C21: 35629 | D21: 33821 | E21: 257 | F21: 94.93% | G21: 579 | I21: 7 | J21: 152 | K21: 169.08%
A22: 13 | B22: 来宾市 | C22: 28580 | D22: 26897 | E22: 614 | F22: 94.11% | I22: 10 | J22: 430 | K22: 142.79%
A23: 14 | B23: 崇左市 | C23: 12262 | D23: 11847 | E23: 86 | F23: 96.62% | G23: 1446 | I23: 3 | J23: 6 | K23: 1433.33%
A24: 15 | B24: 区直 | C24: 2067 | D24: 1240 | E24: 1240 | F24: 59.99% | J24: 1984 | K24: 62.50%
A25: 16 | B25: 宁铁 | C25: 247 | D25: 247 | E25: 0 | F25: 100.00% | J25: =SUM(J10:J24) -> 9390
